[Event "Titled Tuesday Blitz November 08 Early 2022"]
[White "Saucey, Michel"]
[Black "Hasangatin, Ramil"]
[WhiteFideId "601845"]
[BlackFideId "4122160"]
[WhiteElo "2253"]
[BlackElo "2362"]
[Result "1-0"]
[Round "02"]
[TimeControl "180+1"]
[Date "2022.11.09"]
[WhiteClock "0:00:29"]
[BlackClock "0:00:39"]

1. d4 {[%clk 0:03:00]}  d6 {[%clk 0:02:59]} 2. e4 {[%clk 0:03:00]}  Nf6 {[%clk 0:02:58]} 3. Nc3 {[%clk 0:03:00]}  e5 {[%clk 0:02:59]} 4. Nf3 {[%clk 0:02:59]}  Nbd7 {[%clk 0:02:58]} 5. Bc4 {[%clk 0:02:59]}  Be7 {[%clk 0:02:59]} 6. O-O {[%clk 0:02:57]}  O-O {[%clk 0:02:59]} 7. a4 {[%clk 0:02:57]}  c6 {[%clk 0:03:00]} 8. Re1 {[%clk 0:02:55]}  exd4 {[%clk 0:03:00]} 9. Nxd4 {[%clk 0:02:55]}  Ne5 {[%clk 0:03:01]} 10. Ba2 {[%clk 0:02:50]}  Re8 {[%clk 0:03:01]} 11. h3 {[%clk 0:02:47]}  Bf8 {[%clk 0:03:01]} 12. Bf4 {[%clk 0:02:32]}  Qc7 {[%clk 0:03:00]} 13. Bh2 {[%clk 0:02:28]}  Ng6 {[%clk 0:03:00]} 14. Bb3 {[%clk 0:02:24]}  Bd7 {[%clk 0:02:55]} 15. a5 {[%clk 0:02:23]}  b5 {[%clk 0:02:54]} 16. axb6 {[%clk 0:02:22]}  axb6 {[%clk 0:02:55]} 17. Rxa8 {[%clk 0:02:19]}  Rxa8 {[%clk 0:02:56]} 18. Nf5 {[%clk 0:02:16]}  Bxf5 {[%clk 0:02:49]} 19. exf5 {[%clk 0:02:16]}  Ne5 {[%clk 0:02:49]} 20. Bxe5 {[%clk 0:02:02]}  dxe5 {[%clk 0:02:50]} 21. Qe2 {[%clk 0:01:59]}  Re8 {[%clk 0:02:47]} 22. Ne4 {[%clk 0:01:58]}  Nxe4 {[%clk 0:02:42]} 23. Qxe4 {[%clk 0:01:57]}  b5 {[%clk 0:02:42]} 24. f6 {[%clk 0:01:48]}  g6 {[%clk 0:02:40]} 25. g4 {[%clk 0:01:43]}  Bh6 {[%clk 0:02:30]} 26. h4 {[%clk 0:01:38]}  Qd7 {[%clk 0:02:24]} 27. g5 {[%clk 0:01:32]}  Bf8 {[%clk 0:02:23]} 28. Kg2 {[%clk 0:01:27]}  Kh8 {[%clk 0:02:16]} 29. c3 {[%clk 0:01:14]}  c5 {[%clk 0:02:05]} 30. Rd1 {[%clk 0:01:12]}  Qc8 {[%clk 0:02:02]} 31. Bd5 {[%clk 0:01:10]}  Qc7 {[%clk 0:01:56]} 32. c4 {[%clk 0:01:02]}  bxc4 {[%clk 0:01:55]} 33. Bxc4 {[%clk 0:01:02]}  Rd8 {[%clk 0:01:28]} 34. Rxd8 {[%clk 0:01:01]}  Qxd8 {[%clk 0:01:29]} 35. Bxf7 {[%clk 0:01:00]}  Qd4 {[%clk 0:01:29]} 36. Qxd4 {[%clk 0:00:55]}  exd4 {[%clk 0:01:29]} 37. b3 {[%clk 0:00:47]}  Bd6 {[%clk 0:01:25]} 38. Kf3 {[%clk 0:00:46]}  Bc7 {[%clk 0:01:22]} 39. Bc4 {[%clk 0:00:39]}  Ba5 {[%clk 0:01:21]} 40. Kg4 {[%clk 0:00:37]}  Be1 {[%clk 0:01:21]} 41. f4 {[%clk 0:00:37]}  Bf2 {[%clk 0:01:20]} 42. h5 {[%clk 0:00:35]}  Be3 {[%clk 0:01:15]} 43. f5 {[%clk 0:00:32]}  gxh5+ {[%clk 0:00:49]} 44. Kxh5 {[%clk 0:00:32]}  Bf4 {[%clk 0:00:41]} 45. g6 {[%clk 0:00:31]}  hxg6+ {[%clk 0:00:39]} 46. fxg6 {[%clk 0:00:29]} 1-0


[Site "https://www.chess.com"]

[Event "Titled Tuesday Blitz November 08 Early 2022"]
[White "Schmidt, Tobias"]
[Black "Kis, Lorand Bela"]
[WhiteFideId "1271683"]
[BlackFideId "2024098"]
[WhiteElo "2328"]
[BlackElo "2085"]
[Result "0-1"]
[Round "02"]
[TimeControl "180+1"]
[Date "2022.11.09"]
[WhiteClock "0:00:07"]
[BlackClock "0:00:59"]

1. d3 {[%clk 0:03:00]}  g6 {[%clk 0:02:58]} 2. h4 {[%clk 0:02:59]}  h5 {[%clk 0:02:58]} 3. e4 {[%clk 0:02:56]}  Bg7 {[%clk 0:02:57]} 4. Nc3 {[%clk 0:02:45]}  c6 {[%clk 0:02:54]} 5. Nf3 {[%clk 0:02:35]}  d5 {[%clk 0:02:53]} 6. Bg5 {[%clk 0:02:30]}  Nf6 {[%clk 0:02:43]} 7. e5 {[%clk 0:02:25]}  Ng4 {[%clk 0:02:43]} 8. d4 {[%clk 0:02:20]}  Nh6 {[%clk 0:02:43]} 9. Qd2 {[%clk 0:02:15]}  Qb6 {[%clk 0:02:34]} 10. O-O-O {[%clk 0:02:14]}  Bg4 {[%clk 0:02:34]} 11. Be2 {[%clk 0:02:11]}  Nf5 {[%clk 0:02:32]} 12. Rhe1 {[%clk 0:02:03]}  e6 {[%clk 0:02:31]} 13. Ng1 {[%clk 0:01:56]}  Bxe2 {[%clk 0:02:29]} 14. Ngxe2 {[%clk 0:01:56]}  c5 {[%clk 0:02:22]} 15. dxc5 {[%clk 0:01:37]}  Qxc5 {[%clk 0:02:21]} 16. Bf6 {[%clk 0:01:19]}  Bh6 {[%clk 0:01:58]} 17. Bg5 {[%clk 0:01:14]}  Bg7 {[%clk 0:01:58]} 18. Qf4 {[%clk 0:01:10]}  Nc6 {[%clk 0:01:53]} 19. Bf6 {[%clk 0:01:07]}  Bxf6 {[%clk 0:01:45]} 20. exf6 {[%clk 0:01:06]}  O-O-O {[%clk 0:01:46]} 21. Ng3 {[%clk 0:00:58]}  Nxg3 {[%clk 0:01:32]} 22. Qxg3 {[%clk 0:00:50]}  a6 {[%clk 0:01:28]} 23. f4 {[%clk 0:00:36]}  Qd6 {[%clk 0:01:17]} 24. Ne4 {[%clk 0:00:32]}  Qb4 {[%clk 0:01:15]} 25. Ng5 {[%clk 0:00:30]}  Rd7 {[%clk 0:01:14]} 26. Rd3 {[%clk 0:00:26]}  Qd6 {[%clk 0:01:10]} 27. Ne4 {[%clk 0:00:21]}  Qc7 {[%clk 0:01:08]} 28. Nc5 {[%clk 0:00:20]}  Rdd8 {[%clk 0:01:08]} 29. Nb3 {[%clk 0:00:18]}  Kb8 {[%clk 0:01:07]} 30. Kb1 {[%clk 0:00:17]}  Rc8 {[%clk 0:01:08]} 31. Re2 {[%clk 0:00:16]}  Rhd8 {[%clk 0:01:04]} 32. Qe3 {[%clk 0:00:16]}  Na5 {[%clk 0:01:03]} 33. Rc3 {[%clk 0:00:15]}  Nc4 {[%clk 0:01:01]} 34. Qc1 {[%clk 0:00:15]}  Qd6 {[%clk 0:01:00]} 35. g3 {[%clk 0:00:14]}  b6 {[%clk 0:00:59]} 36. Nd2 {[%clk 0:00:14]}  Na5 {[%clk 0:00:56]} 37. Rxc8+ {[%clk 0:00:13]}  Rxc8 {[%clk 0:00:57]} 38. Nb3 {[%clk 0:00:13]}  Nc4 {[%clk 0:00:57]} 39. Nd2 {[%clk 0:00:13]}  Qc5 {[%clk 0:00:57]} 40. Nxc4 {[%clk 0:00:13]}  Qxc4 {[%clk 0:00:58]} 41. Re3 {[%clk 0:00:12]}  b5 {[%clk 0:00:58]} 42. Rc3 {[%clk 0:00:12]}  Qe4 {[%clk 0:00:58]} 43. Rxc8+ {[%clk 0:00:11]}  Kxc8 {[%clk 0:00:59]} 44. a3 {[%clk 0:00:10]}  Kb7 {[%clk 0:00:58]} 45. Qd2 {[%clk 0:00:09]}  Qc4 {[%clk 0:00:57]} 46. b3 {[%clk 0:00:08]}  Qf1+ {[%clk 0:00:57]} 47. Kb2 {[%clk 0:00:08]}  Qf3 {[%clk 0:00:58]} 48. Qc3 {[%clk 0:00:08]}  Qxc3+ {[%clk 0:00:56]} 49. Kxc3 {[%clk 0:00:09]}  Kc6 {[%clk 0:00:56]} 50. Kd4 {[%clk 0:00:09]}  Kd6 {[%clk 0:00:56]} 51. b4 {[%clk 0:00:07]}  Kc6 {[%clk 0:00:56]} 52. Ke5 {[%clk 0:00:07]}  Kd7 {[%clk 0:00:56]} 53. Kd4 {[%clk 0:00:05]}  Kc6 {[%clk 0:00:56]} 54. Kc3 {[%clk 0:00:06]}  Kd6 {[%clk 0:00:57]} 55. Kb3 {[%clk 0:00:06]}  e5 {[%clk 0:00:57]} 56. a4 {[%clk 0:00:04]}  exf4 {[%clk 0:00:56]} 57. gxf4 {[%clk 0:00:04]}  Ke6 {[%clk 0:00:56]} 58. axb5 {[%clk 0:00:04]}  axb5 {[%clk 0:00:57]} 59. Kc3 {[%clk 0:00:05]}  Kxf6 {[%clk 0:00:57]} 60. Kd4 {[%clk 0:00:06]}  Ke6 {[%clk 0:00:57]} 61. Kc5 {[%clk 0:00:06]}  f6 {[%clk 0:00:57]} 62. Kxb5 {[%clk 0:00:06]}  g5 {[%clk 0:00:57]} 63. fxg5 {[%clk 0:00:06]}  fxg5 {[%clk 0:00:58]} 64. hxg5 {[%clk 0:00:06]}  h4 {[%clk 0:00:59]} 65. Ka6 {[%clk 0:00:05]}  h3 {[%clk 0:00:59]} 66. b5 {[%clk 0:00:06]}  h2 {[%clk 0:00:59]} 67. b6 {[%clk 0:00:06]}  h1=Q {[%clk 0:01:00]} 68. b7 {[%clk 0:00:07]}  Qa1+ {[%clk 0:01:00]} 69. Kb6 {[%clk 0:00:07]}  Qb2+ {[%clk 0:01:01]} 70. Ka7 {[%clk 0:00:07]}  Qa3+ {[%clk 0:01:01]} 71. Kb6 {[%clk 0:00:07]}  Qb4+ {[%clk 0:01:01]} 72. Ka7 {[%clk 0:00:07]}  Qa5+ {[%clk 0:01:02]} 73. Kb8 {[%clk 0:00:07]}  Kf5 {[%clk 0:01:01]} 74. Kc8 {[%clk 0:00:07]}  Qc5+ {[%clk 0:01:01]} 75. Kd7 {[%clk 0:00:08]}  Qb5+ {[%clk 0:01:00]} 76. Kc7 {[%clk 0:00:08]}  Qc5+ {[%clk 0:01:00]} 77. Kd7 {[%clk 0:00:08]}  Qa7 {[%clk 0:01:00]} 78. Kc7 {[%clk 0:00:08]}  Kxg5 {[%clk 0:01:00]} 79. Kc8 {[%clk 0:00:08]}  Qc5+ {[%clk 0:01:00]} 80. Kd7 {[%clk 0:00:08]}  Qb6 {[%clk 0:01:00]} 81. Kc8 {[%clk 0:00:08]}  Qc6+ {[%clk 0:01:00]} 82. Kb8 {[%clk 0:00:07]}  Qxc2 {[%clk 0:01:00]} 83. Ka7 {[%clk 0:00:07]}  Qb3 {[%clk 0:01:01]} 84. b8=Q {[%clk 0:00:02]}  Qxb8+ {[%clk 0:01:01]} 85. Ka6 {[%clk 0:00:02]}  d4 {[%clk 0:01:01]} 86. Ka5 {[%clk 0:00:03]}  d3 {[%clk 0:01:02]} 87. Ka4 {[%clk 0:00:04]}  d2 {[%clk 0:01:03]} 88. Ka3 {[%clk 0:00:05]}  d1=Q {[%clk 0:01:04]} 89. Ka2 {[%clk 0:00:06]}  Qd7 {[%clk 0:00:59]} 90. Ka1 {[%clk 0:00:07]}  Qda7# {[%clk 0:00:59]} 0-1


[Site "https://www.chess.com"]

[Event "Titled Tuesday Blitz November 08 Early 2022"]
[White "Selbes, Tarik"]
[Black "Alhadad, Mahmoud"]
[WhiteFideId "6302513"]
[BlackFideId "11501863"]
[WhiteElo "2290"]
[BlackElo "1955"]
[Result "1/2-1/2"]
[Round "02"]
[TimeControl "180+1"]
[Date "2022.11.09"]
[WhiteClock "0:00:11"]
[BlackClock "0:00:14"]

1. e4 {[%clk 0:03:00]}  d5 {[%clk 0:03:00]} 2. exd5 {[%clk 0:02:59]}  Nf6 {[%clk 0:03:01]} 3. Nf3 {[%clk 0:02:58]}  Bg4 {[%clk 0:03:01]} 4. Be2 {[%clk 0:02:50]}  Qxd5 {[%clk 0:03:01]} 5. Nc3 {[%clk 0:02:49]}  Qf5 {[%clk 0:03:00]} 6. Nd4 {[%clk 0:02:45]}  Qe5 {[%clk 0:02:38]} 7. Ndb5 {[%clk 0:02:42]}  Bxe2 {[%clk 0:02:31]} 8. Qxe2 {[%clk 0:02:41]}  Qxe2+ {[%clk 0:02:31]} 9. Kxe2 {[%clk 0:02:41]}  Na6 {[%clk 0:02:28]} 10. d3 {[%clk 0:02:33]}  c6 {[%clk 0:02:17]} 11. Nd4 {[%clk 0:02:32]}  O-O-O {[%clk 0:02:17]} 12. Nb3 {[%clk 0:02:25]}  Nb4 {[%clk 0:02:11]} 13. Kd1 {[%clk 0:02:24]}  Ng4 {[%clk 0:01:43]} 14. Be3 {[%clk 0:01:44]}  Nxe3+ {[%clk 0:01:42]} 15. fxe3 {[%clk 0:01:44]}  e5 {[%clk 0:01:29]} 16. e4 {[%clk 0:01:40]}  Na6 {[%clk 0:01:05]} 17. Rf1 {[%clk 0:01:37]}  f6 {[%clk 0:01:05]} 18. g4 {[%clk 0:01:32]}  h6 {[%clk 0:01:04]} 19. Ke2 {[%clk 0:01:30]}  Nc5 {[%clk 0:01:04]} 20. Nxc5 {[%clk 0:01:29]}  Bxc5 {[%clk 0:01:05]} 21. Rf5 {[%clk 0:01:24]}  Bd4 {[%clk 0:00:50]} 22. h4 {[%clk 0:01:22]}  b5 {[%clk 0:00:49]} 23. Rg1 {[%clk 0:01:20]}  Kc7 {[%clk 0:00:45]} 24. Rg2 {[%clk 0:01:19]}  Kd6 {[%clk 0:00:19]} 25. g5 {[%clk 0:01:17]}  hxg5 {[%clk 0:00:20]} 26. hxg5 {[%clk 0:01:16]}  Ke6 {[%clk 0:00:20]} 27. gxf6 {[%clk 0:01:15]}  gxf6 {[%clk 0:00:20]} 28. Nd1 {[%clk 0:01:11]}  Rdg8 {[%clk 0:00:19]} 29. Rxg8 {[%clk 0:00:37]}  Rxg8 {[%clk 0:00:19]} 30. c3 {[%clk 0:00:37]}  Bb6 {[%clk 0:00:18]} 31. Ne3 {[%clk 0:00:18]}  Bxe3 {[%clk 0:00:17]} 32. Kxe3 {[%clk 0:00:19]}  Rg2 {[%clk 0:00:17]} 33. Rf2 {[%clk 0:00:18]}  Rxf2 {[%clk 0:00:18]} 34. Kxf2 {[%clk 0:00:19]}  f5 {[%clk 0:00:18]} 35. exf5+ {[%clk 0:00:18]}  Kxf5 {[%clk 0:00:18]} 36. Kf3 {[%clk 0:00:19]}  c5 {[%clk 0:00:19]} 37. b3 {[%clk 0:00:18]}  a5 {[%clk 0:00:18]} 38. a4 {[%clk 0:00:18]}  b4 {[%clk 0:00:16]} 39. c4 {[%clk 0:00:16]}  Kf6 {[%clk 0:00:16]} 40. Ke3 {[%clk 0:00:13]}  Kf5 {[%clk 0:00:15]} 41. Kf3 {[%clk 0:00:13]}  Kf6 {[%clk 0:00:15]} 42. Kf2 {[%clk 0:00:12]}  Kg5 {[%clk 0:00:14]} 43. Ke3 {[%clk 0:00:11]}  Kf5 {[%clk 0:00:14]} 44. Kf3 {[%clk 0:00:11]} 1/2-1/2


[Site "https://www.chess.com"]

[Event "Titled Tuesday Blitz November 08 Early 2022"]
[White "Seo, Jung Min"]
[Black "Mendez Fortes, Eduardo Jesus"]
[WhiteFideId "1734687"]
[BlackFideId "3502376"]
[WhiteElo "2455"]
[BlackElo "2307"]
[Result "1/2-1/2"]
[Round "02"]
[TimeControl "180+1"]
[Date "2022.11.09"]
[WhiteClock "0:00:07"]
[BlackClock "0:00:06"]

1. e4 {[%clk 0:03:00]}  e5 {[%clk 0:02:58]} 2. Nf3 {[%clk 0:03:01]}  Nc6 {[%clk 0:02:58]} 3. Bb5 {[%clk 0:03:00]}  Nf6 {[%clk 0:02:58]} 4. d3 {[%clk 0:02:58]}  Bc5 {[%clk 0:02:58]} 5. Bxc6 {[%clk 0:02:57]}  dxc6 {[%clk 0:02:59]} 6. Nbd2 {[%clk 0:02:58]}  Nd7 {[%clk 0:02:58]} 7. Nc4 {[%clk 0:02:56]}  Qe7 {[%clk 0:02:51]} 8. Bd2 {[%clk 0:02:55]}  f6 {[%clk 0:02:47]} 9. Qe2 {[%clk 0:02:48]}  Nb6 {[%clk 0:02:46]} 10. Na5 {[%clk 0:02:46]}  Bd6 {[%clk 0:02:40]} 11. h3 {[%clk 0:02:43]}  c5 {[%clk 0:02:40]} 12. g4 {[%clk 0:02:42]}  Be6 {[%clk 0:02:38]} 13. Nxb7 {[%clk 0:02:40]}  c4 {[%clk 0:02:37]} 14. Nxd6+ {[%clk 0:02:37]}  Qxd6 {[%clk 0:02:32]} 15. Bc3 {[%clk 0:02:26]}  cxd3 {[%clk 0:02:16]} 16. cxd3 {[%clk 0:02:26]}  O-O-O {[%clk 0:02:13]} 17. d4 {[%clk 0:02:10]}  Bc4 {[%clk 0:02:12]} 18. Qe3 {[%clk 0:02:05]}  exd4 {[%clk 0:02:10]} 19. Nxd4 {[%clk 0:02:05]}  Rhe8 {[%clk 0:02:06]} 20. O-O-O {[%clk 0:01:53]}  Qc5 {[%clk 0:01:37]} 21. Nf5 {[%clk 0:01:47]}  Qxe3+ {[%clk 0:01:34]} 22. fxe3 {[%clk 0:01:44]}  Rxd1+ {[%clk 0:01:31]} 23. Rxd1 {[%clk 0:01:43]}  Rxe4 {[%clk 0:01:29]} 24. b3 {[%clk 0:01:37]}  Bf7 {[%clk 0:01:20]} 25. Bd4 {[%clk 0:01:27]}  g6 {[%clk 0:00:50]} 26. Ng3 {[%clk 0:01:26]}  Re6 {[%clk 0:00:49]} 27. Rf1 {[%clk 0:01:26]}  Nd5 {[%clk 0:00:48]} 28. e4 {[%clk 0:01:20]}  Nb4 {[%clk 0:00:45]} 29. Kb1 {[%clk 0:01:20]}  Ra6 {[%clk 0:00:32]} 30. Rxf6 {[%clk 0:01:16]}  Rxf6 {[%clk 0:00:29]} 31. Bxf6 {[%clk 0:01:16]}  Nd3 {[%clk 0:00:25]} 32. Bd4 {[%clk 0:01:07]}  Nf4 {[%clk 0:00:22]} 33. h4 {[%clk 0:01:06]}  Be6 {[%clk 0:00:21]} 34. g5 {[%clk 0:01:06]}  Ng2 {[%clk 0:00:21]} 35. h5 {[%clk 0:01:05]}  Kb7 {[%clk 0:00:17]} 36. Kc1 {[%clk 0:00:56]}  Ne1 {[%clk 0:00:15]} 37. Kd1 {[%clk 0:00:46]}  Nf3 {[%clk 0:00:15]} 38. hxg6 {[%clk 0:00:41]}  hxg6 {[%clk 0:00:14]} 39. Bf6 {[%clk 0:00:40]}  Bg4 {[%clk 0:00:13]} 40. Kc2 {[%clk 0:00:37]}  Kc6 {[%clk 0:00:13]} 41. Kc3 {[%clk 0:00:35]}  Kd6 {[%clk 0:00:13]} 42. Nf1 {[%clk 0:00:33]}  Be6 {[%clk 0:00:09]} 43. Ne3 {[%clk 0:00:32]}  c6 {[%clk 0:00:07]} 44. Nc4+ {[%clk 0:00:27]}  Kc5 {[%clk 0:00:06]} 45. b4+ {[%clk 0:00:26]}  Kb5 {[%clk 0:00:06]} 46. Nd6+ {[%clk 0:00:25]}  Ka4 {[%clk 0:00:06]} 47. Nc4 {[%clk 0:00:12]}  Kb5 {[%clk 0:00:06]} 48. Na3+ {[%clk 0:00:06]}  Ka4 {[%clk 0:00:06]} 49. Nc4 {[%clk 0:00:07]}  Kb5 {[%clk 0:00:06]} 1/2-1/2


[Site "https://www.chess.com"]

[Event "Titled Tuesday Blitz November 08 Early 2022"]
[White "Shimanov, Aleksandr"]
[Black "Paszewski, Mateusz"]
[WhiteFideId "4198603"]
[BlackFideId "1141058"]
[WhiteElo "2605"]
[BlackElo "2263"]
[Result "1-0"]
[Round "02"]
[TimeControl "180+1"]
[Date "2022.11.09"]
[WhiteClock "0:00:15"]
[BlackClock "0:00:48"]

1. d4 {[%clk 0:03:00]}  d5 {[%clk 0:03:00]} 2. c4 {[%clk 0:02:59]}  e6 {[%clk 0:03:00]} 3. Nf3 {[%clk 0:02:57]}  a6 {[%clk 0:03:00]} 4. cxd5 {[%clk 0:02:47]}  exd5 {[%clk 0:03:01]} 5. Nc3 {[%clk 0:02:47]}  c6 {[%clk 0:02:59]} 6. Bg5 {[%clk 0:02:34]}  Be7 {[%clk 0:02:58]} 7. h4 {[%clk 0:02:32]}  h6 {[%clk 0:02:56]} 8. Bf4 {[%clk 0:02:31]}  Bd6 {[%clk 0:02:57]} 9. Qd2 {[%clk 0:02:28]}  Nf6 {[%clk 0:02:56]} 10. Ne5 {[%clk 0:02:24]}  Qe7 {[%clk 0:02:54]} 11. e3 {[%clk 0:02:18]}  Nbd7 {[%clk 0:02:53]} 12. Nxd7 {[%clk 0:02:11]}  Bxd7 {[%clk 0:02:53]} 13. Bxd6 {[%clk 0:02:11]}  Qxd6 {[%clk 0:02:54]} 14. f3 {[%clk 0:02:09]}  O-O-O {[%clk 0:02:45]} 15. O-O-O {[%clk 0:02:09]}  Bf5 {[%clk 0:02:44]} 16. g4 {[%clk 0:02:08]}  Bg6 {[%clk 0:02:44]} 17. Bh3 {[%clk 0:02:02]}  Kb8 {[%clk 0:02:43]} 18. Qh2 {[%clk 0:02:01]}  Rhe8 {[%clk 0:02:40]} 19. Kd2 {[%clk 0:01:55]}  Re7 {[%clk 0:02:31]} 20. Qxd6+ {[%clk 0:01:48]}  Rxd6 {[%clk 0:02:32]} 21. g5 {[%clk 0:01:48]}  hxg5 {[%clk 0:02:31]} 22. hxg5 {[%clk 0:01:48]}  Ne8 {[%clk 0:02:31]} 23. Bg4 {[%clk 0:01:48]}  Rd8 {[%clk 0:02:29]} 24. Rh8 {[%clk 0:01:46]}  Kc7 {[%clk 0:02:29]} 25. b3 {[%clk 0:01:43]}  Nd6 {[%clk 0:02:27]} 26. Rxd8 {[%clk 0:01:42]}  Kxd8 {[%clk 0:02:28]} 27. Rh1 {[%clk 0:01:43]}  Re8 {[%clk 0:02:28]} 28. Na4 {[%clk 0:01:38]}  Bf5 {[%clk 0:02:22]} 29. Bxf5 {[%clk 0:01:15]}  Nxf5 {[%clk 0:02:23]} 30. Re1 {[%clk 0:01:16]}  Rh8 {[%clk 0:02:19]} 31. Nc5 {[%clk 0:01:14]}  Kc7 {[%clk 0:02:16]} 32. Re2 {[%clk 0:01:13]}  Rh3 {[%clk 0:02:15]} 33. f4 {[%clk 0:01:13]}  a5 {[%clk 0:02:10]} 34. Nd3 {[%clk 0:01:09]}  Ng3 {[%clk 0:02:06]} 35. Rg2 {[%clk 0:01:04]}  Nf1+ {[%clk 0:01:58]} 36. Ke2 {[%clk 0:01:04]}  Nxe3 {[%clk 0:01:58]} 37. Rg1 {[%clk 0:00:50]}  Nf5 {[%clk 0:01:57]} 38. Ne5 {[%clk 0:00:50]}  Nxd4+ {[%clk 0:01:57]} 39. Kf2 {[%clk 0:00:51]}  f6 {[%clk 0:01:54]} 40. gxf6 {[%clk 0:00:51]}  gxf6 {[%clk 0:01:55]} 41. Rg7+ {[%clk 0:00:52]}  Kb6 {[%clk 0:01:54]} 42. Nd7+ {[%clk 0:00:51]}  Kb5 {[%clk 0:01:55]} 43. Nxf6 {[%clk 0:00:51]}  Rf3+ {[%clk 0:01:50]} 44. Kg2 {[%clk 0:00:52]}  Rxf4 {[%clk 0:01:50]} 45. Nh5 {[%clk 0:00:49]}  Re4 {[%clk 0:01:40]} 46. Ng3 {[%clk 0:00:47]}  Re3 {[%clk 0:01:29]} 47. Rxb7+ {[%clk 0:00:47]}  Ka6 {[%clk 0:01:28]} 48. Rf7 {[%clk 0:00:43]}  Rc3 {[%clk 0:01:26]} 49. Rf2 {[%clk 0:00:40]}  Kb5 {[%clk 0:01:24]} 50. Rd2 {[%clk 0:00:39]}  Ne6 {[%clk 0:01:20]} 51. Ne2 {[%clk 0:00:38]}  Re3 {[%clk 0:01:15]} 52. Kf2 {[%clk 0:00:38]}  Re4 {[%clk 0:01:16]} 53. Nc3+ {[%clk 0:00:38]}  Kb4 {[%clk 0:01:14]} 54. Nxe4 {[%clk 0:00:38]}  dxe4 {[%clk 0:01:15]} 55. Rc2 {[%clk 0:00:37]}  c5 {[%clk 0:01:00]} 56. Rc4+ {[%clk 0:00:37]}  Ka3 {[%clk 0:01:00]} 57. Ra4+ {[%clk 0:00:37]}  Kb2 {[%clk 0:01:00]} 58. Rxa5 {[%clk 0:00:32]}  Nd4 {[%clk 0:01:00]} 59. Ke3 {[%clk 0:00:29]}  Nc2+ {[%clk 0:00:59]} 60. Kxe4 {[%clk 0:00:29]}  Nb4 {[%clk 0:01:00]} 61. a3 {[%clk 0:00:17]}  Nc2 {[%clk 0:00:48]} 62. Rxc5 {[%clk 0:00:17]}  Nxa3 {[%clk 0:00:48]} 63. b4 {[%clk 0:00:17]}  Kb3 {[%clk 0:00:49]} 64. b5 {[%clk 0:00:17]}  Kb4 {[%clk 0:00:48]} 65. b6 {[%clk 0:00:15]} 1-0


[Site "https://www.chess.com"]

[Event "Titled Tuesday Blitz November 08 Early 2022"]
[White "Shohat, Yotam"]
[Black "Boros, Denes"]
[WhiteFideId "2813955"]
[BlackFideId "722340"]
[WhiteElo "2216"]
[BlackElo "2464"]
[Result "0-1"]
[Round "02"]
[TimeControl "180+1"]
[Date "2022.11.09"]
[WhiteClock "0:00:02"]
[BlackClock "0:01:20"]

1. e4 {[%clk 0:03:00]}  c6 {[%clk 0:03:00]} 2. d3 {[%clk 0:02:42]}  g6 {[%clk 0:03:01]} 3. f4 {[%clk 0:02:37]}  Bg7 {[%clk 0:03:01]} 4. Nf3 {[%clk 0:02:37]}  d5 {[%clk 0:03:02]} 5. Nbd2 {[%clk 0:02:23]}  Qb6 {[%clk 0:03:01]} 6. c3 {[%clk 0:02:18]}  Nh6 {[%clk 0:02:55]} 7. h3 {[%clk 0:02:01]}  Nd7 {[%clk 0:02:41]} 8. d4 {[%clk 0:01:18]}  c5 {[%clk 0:02:31]} 9. e5 {[%clk 0:01:10]}  Nf5 {[%clk 0:02:26]} 10. Bd3 {[%clk 0:00:46]}  Ng3 {[%clk 0:02:04]} 11. Rg1 {[%clk 0:00:42]}  f5 {[%clk 0:02:04]} 12. exf6 {[%clk 0:00:18]}  Bxf6 {[%clk 0:02:00]} 13. Kf2 {[%clk 0:00:16]}  Nh5 {[%clk 0:01:53]} 14. Nf1 {[%clk 0:00:12]}  cxd4 {[%clk 0:01:49]} 15. cxd4 {[%clk 0:00:12]}  O-O {[%clk 0:01:50]} 16. g4 {[%clk 0:00:06]}  e5 {[%clk 0:01:50]} 17. gxh5 {[%clk 0:00:05]}  e4 {[%clk 0:01:51]} 18. Be3 {[%clk 0:00:02]}  exd3 {[%clk 0:01:49]} 19. Qxd3 {[%clk 0:00:03]}  Qxb2+ {[%clk 0:01:46]} 20. N1d2 {[%clk 0:00:03]}  Qb6 {[%clk 0:01:42]} 21. hxg6 {[%clk 0:00:03]}  Bg7 {[%clk 0:01:42]} 22. gxh7+ {[%clk 0:00:04]}  Kh8 {[%clk 0:01:43]} 23. Rxg7 {[%clk 0:00:03]}  Kxg7 {[%clk 0:01:40]} 24. Rg1+ {[%clk 0:00:03]}  Kh8 {[%clk 0:01:40]} 25. Rg6 {[%clk 0:00:02]}  Nf6 {[%clk 0:01:37]} 26. Ne5 {[%clk 0:00:02]}  Qc7 {[%clk 0:01:31]} 27. Ndf3 {[%clk 0:00:02]}  Bf5 {[%clk 0:01:27]} 28. Qxf5 {[%clk 0:00:02]}  Ne4+ {[%clk 0:01:27]} 29. Qxe4 {[%clk 0:00:02]}  dxe4 {[%clk 0:01:28]} 30. Ng5 {[%clk 0:00:03]}  Rae8 {[%clk 0:01:25]} 31. Kg3 {[%clk 0:00:02]}  Qc3 {[%clk 0:01:18]} 32. Nef7+ {[%clk 0:00:01]}  Rxf7 {[%clk 0:01:18]} 33. Nxf7+ {[%clk 0:00:02]}  Kxh7 {[%clk 0:01:19]} 34. Rh6+ {[%clk 0:00:02]}  Kg7 {[%clk 0:01:20]} 0-1


[Site "https://www.chess.com"]

[Event "Titled Tuesday Blitz November 08 Early 2022"]
[White "Sibilio, Mario"]
[Black "Gu, Xiaobing"]
[WhiteFideId "800422"]
[BlackFideId "8602611"]
[WhiteElo "2251"]
[BlackElo "2174"]
[Result "1-0"]
[Round "02"]
[TimeControl "180+1"]
[Date "2022.11.09"]
[WhiteClock "0:00:06"]
[BlackClock "0:00:23"]

1. e4 {[%clk 0:03:00]}  c5 {[%clk 0:02:58]} 2. Nf3 {[%clk 0:03:00]}  d6 {[%clk 0:02:55]} 3. b3 {[%clk 0:02:59]}  Nf6 {[%clk 0:02:48]} 4. e5 {[%clk 0:02:59]}  dxe5 {[%clk 0:02:40]} 5. Nxe5 {[%clk 0:02:58]}  e6 {[%clk 0:02:36]} 6. Bb2 {[%clk 0:02:57]}  Bd6 {[%clk 0:02:36]} 7. f4 {[%clk 0:02:56]}  O-O {[%clk 0:02:35]} 8. Na3 {[%clk 0:02:53]}  Na6 {[%clk 0:02:27]} 9. Nac4 {[%clk 0:02:51]}  Bb8 {[%clk 0:02:23]} 10. a3 {[%clk 0:02:37]}  Nc7 {[%clk 0:02:16]} 11. Bd3 {[%clk 0:02:31]}  Ncd5 {[%clk 0:01:55]} 12. O-O {[%clk 0:02:03]}  b5 {[%clk 0:01:49]} 13. Ne3 {[%clk 0:02:02]}  Bb7 {[%clk 0:01:49]} 14. Bxb5 {[%clk 0:01:54]}  Ne4 {[%clk 0:01:32]} 15. Bd3 {[%clk 0:01:33]}  Nxe3 {[%clk 0:01:19]} 16. dxe3 {[%clk 0:01:31]}  f6 {[%clk 0:00:52]} 17. Qf3 {[%clk 0:01:12]}  Nd6 {[%clk 0:00:48]} 18. Qh3 {[%clk 0:01:08]}  Nf5 {[%clk 0:00:38]} 19. Rad1 {[%clk 0:00:50]}  Qb6 {[%clk 0:00:34]} 20. Nc4 {[%clk 0:00:45]}  Qc7 {[%clk 0:00:33]} 21. Bxf5 {[%clk 0:00:21]}  exf5 {[%clk 0:00:33]} 22. Qxf5 {[%clk 0:00:20]}  Qc6 {[%clk 0:00:33]} 23. Rf2 {[%clk 0:00:18]}  Bc7 {[%clk 0:00:33]} 24. Qg4 {[%clk 0:00:10]}  Rae8 {[%clk 0:00:32]} 25. h4 {[%clk 0:00:08]}  Kh8 {[%clk 0:00:24]} 26. Rd7 {[%clk 0:00:07]}  Bc8 {[%clk 0:00:23]} 27. Qxg7# {[%clk 0:00:06]} 1-0


[Site "https://www.chess.com"]